{"text_format":"1","workbook":"xlsx","n_sheets":1,"sheets":["Price bid 17"],"not_rendered":{"charts":0,"images":0,"macros":1,"external_links":0,"defined_names":0,"comments":0,"pivot_tables":0},"unopened":[],"bounds":{"document_bytes":16777216,"sheet_cells":100000,"rows_first":2000,"rows_last":500,"rows_between":2000,"halvings":0,"cell_chars":16384,"cell_head_chars":4096},"cells_cut":0,"cells_raw":0,"read":"whole","date_system":"1900"}

{"sheet":"Price bid 17","index":0,"n_rows":64,"n_cols":10,"rows_kept":64,"cut":false,"hidden":false,"merged":[[56,4,56,9],[59,2,59,9],[60,2,60,9],[56,0,56,3],[0,0,0,9],[1,0,1,9],[2,0,2,9],[3,0,3,9],[4,0,4,7],[55,0,55,2],[55,4,55,5]]}
["    BHARAT HEAVY ELECTRICAL LIMITED , JHANSI              "]
["FACTORY CIVIL DEPARTMENT"]
["Price bid "]
["Name of Work:-  Miscellaneous civil maintenance work in factory area. "]
["Tender Enquiry No-FCX/TW/23/17"]
["S. \nNo.","DSR 2016  Reference ","DESCRIPTION OF ITEM","% Allocation (Item-wise)","Unit ","Total Qty","Analysed Rate as per DSR 2016","Amount (Rs)","Rate per Unit (in Rs.)","Amount (in Rs.)"]
[null,"(A)","(B)","(C)","(D)","( E )",null,null,"( F )","( G= E*F )"]
[1,"1.1.1/68","By Mechanical Transport including loading, unloading and stacking:  Lime, moorum, building rubbish",{"$f":"H8*0.8009264/1040618","v":3.1489732408088275E-3},"Cum",52,78.680000000000007,{"$f":"F8*G8","v":4091.3600000000006},{"$f":"ROUND(J8/F8,4)","v":0},{"$f":"$J$56*D8","v":0}]
[{"$f":"A8+1","v":2},"1.1.2/68","By Mechanical Transport including loading, unloading and stacking:  Carriage of Earth  up 1 km. ",{"$f":"H9*0.8009264/1040618","v":1.5137755098604869E-3},"Cum",20,98.34,{"$f":"F9*G9","v":1966.8000000000002},{"$f":"ROUND(J9/F9,4)","v":0},{"$f":"$J$56*D9","v":0}]
[{"$f":"A9+1","v":3},"2.6.1/76","Earth work in excavation by mechanical means (Hydraulic excavator)/manual means over areas (exceeding 30 cm in depth, 1.5 m in width as well as 10 sqm on plan) including getting out and disposal of excavated earth lead upto 50 m and lift upto 1.5 m, as directed by Engineer-in-charge.",1.9387840702351873E-3,"Cum",20,125.95,2519,0,0]
[4,"2.25/79","Filling available excavated earth (excluding rock) in trenches, plinth, sides of foundations etc. in layers not exceeding 20cm in depth, consolidating each deposited layer by ramming and watering, lead up to 50 m and lift upto 1.5 m. ",9.6785270675694643E-4,"Cum",10,125.75,1257.5,0,0]
[5,"4.1.3/88","Providing and laying in position cement concrete of specified grade excluding the cost of centering and shuttering - All work up to plinth level : \"1:2:4 (1 cement : 2 coarse sand (zone-III) : 4 graded stone aggregate 20 mm nominal size). ",1.4941860171428902E-2,"Cum",6,3235.58,19413.48,0,0]
[6,"4.1.6/88","Providing and laying in position cement concrete of specified grade excluding the cost of centering and shuttering - All work up to plinth level :  1:3:6 (1 Cement : 3 coarse sand (zone-III): 6 graded stone aggregate 40 mm nominal size). ",2.4945200916378536E-2,"Cum",10,3241.05,32410.5,0,0]
[7,"4.1.8/88","Providing and laying in position cement concrete of specified grade excluding the cost of centering and shuttering - All work up to plinth level :  1:4:8 (1 Cement : 4 coarse sand (zone-III) : 8 graded stone aggregate 40 mm nominal size)",2.518541310705754E-2,"Cum",10,3272.26,32722.600000000002,0,0]
[8,"5.1.3/97","Providing and laying in position specified grade of reinforced cement concrete, excluding the cost of centering, shuttering, finishing and reinforcement - All work up to plinth level : 1:2:4 (1 cement : 2 coarse sand : 4 graded stone aggregate 20 mm  nominal size). ",5.4280412384486901E-2,"Cum",20,3526.24,70524.799999999988,0,0]
[9,"5.3/97","Reinforced cement concrete work in beams, suspended floors, roofs having slope up to 15° landings, balconies, shelves, chajjas, lintels, bands, plain window sills, staircases and spiral stair cases above plinth level up to floor five level, excluding the cost of centering, shuttering, finishing and reinforcement, with 1:1.5:3 (1 cement: 1.5 coarse sand (zone-III): 3 graded stone aggregate 20 mm nominal size). ",2.838767789571197E-2,"Cum",8,4610.3999999999996,36883.199999999997,0,0]
[10,"5.9.1/98","Centering and shuttering including strutting, propping etc. and removal of form for all heights : Foundations, footings, bases of columns, etc. for mass concrete ",2.129122022029217E-2,"Sqm",150,184.42,27662.999999999996,0,0]
[11,"5.9.3/98","Centering and shuttering including strutting, propping etc. and removal of form for all heights :  Suspended floors, roofs, landings, balconies and access platform ",3.2131940200150297E-2,"Sqm",100,417.48,41748,0,0]
[12,"5.22.6","Steel reinforcement for R.C.C. work including straightening, cutting,bending, placing in position and binding all complete upto plinth level. Thermo-Mechanically Treated bars of grade Fe-500D or more.(Steel shall be issued free of cost by BHEL)",4.7368212313836592E-3,"Kg",560,10.99,{"$f":"F19*G19","v":6154.4000000000005},0,0]
[13,"6.1.2/111","Brick work with common burnt clay F.P.S. (non modular) bricks of class designation 7.5 in foundation and plinth in:  Cement mortar 1:6 (1 cement : 6 coarse sand) ",4.5224274256336142E-2,"Cum",15,3917.23,58758.45,0,0]
[14,"6.4.2/111","Brick work with common burnt clay F.P.S. (non modular) bricks of class designation 7.5 in superstructure above plinth level up to floor V level in all shapes and sizes in : Cement mortar 1:6 (1 cement : 6 coarse sand) ",4.3856265445587149E-2,"Cum",12,4748.42,56981.04,0,0]
[15,"6.8/111","Brick work 7 cm thick with common burnt clay F.P.S. (non modular) brick of class designation 7.5 in cement mortar 1:3 (1 cement : 3 coarse sand) in superstructure above plinth level and upto floor five level. ",6.5396826073736945E-3,"Sqm",20,424.84,8496.7999999999993,0,0]
[16,"6.13.2/112","Half brick masonry with common burnt clay F.P.S. (non modular) bricks of class designation 7.5 in superstructure above plinth level up to floor V level. Cement mortar 1:4 (1 cement :4 coarse sand)",9.5721748711323478E-3,"Sqm",22,565.30999999999995,12436.82,0,0]
[17,"7.1.1/119","Random rubble masonry with hard stone in foundation and plinth including levelling up with cement concrete 1:6:12 (1 cement : 6 coarse sand : 12 graded stone aggregate 20 mm nominal size) upto plinth level with :  Cement mortar 1:6 (1 cement : 6 coarse sand) ",1.0266334995366215E-2,"Cum",4,3334.68,13338.72,0,0]
[18,"10.2/182","Structural steel work riveted, bolted or welded in built up sections,trusses and framed work, including cutting, hoisting, fixing in position and applying a priming coat of approved steel primer  all complete (Steel shall be issued free of cost by BHEL. Contractor has to bring primer for 1 coat and paint of approved make and shade for 2 coats over the finished steel structure).",0.39098940360439666,"Kg ",25000,20.32,508000,0,0]
[19,"11.1.2/191","Brick on edge flooring with bricks of class designation 7.5 on a bed of 12 mm cement mortar, including filling the joints with same mortar, with common burnt clay non modular bricks: 1:6 (1cement : 6 coarse sand) ",3.8727192561343357E-3,"Sqm",10,503.17,5031.7,0,0]
[20,"11.2/191","Dry brick on edge flooring in required pattern with bricks of class designation 7.5 on a bed of 12 mm mud mortar, including filling joints with sand, with common burnt clay non modular bricks. ",2.1411287832422657E-3,"Sqm",6,463.65,2781.8999999999996,0,0]
[21,"11.3.1/191","Cement concrete flooring 1:2:4 (1 cement : 2 coarse sand : 4 graded stone aggregate) finished with a floating coat of neat cement, including cement slurry, but excluding the cost of nosing of steps etc. complete.40 mm thick with 20 mm nominal size stone aggregate",1.8958368089731295E-3,"Sqm",10,246.32,2463.1999999999998,0,0]
[22,"11.4/191","52 mm thick cement concrete flooring with concrete hardener topping, under layer 40 mm thick cement concrete 1:2:4 (1 cement : 2 coarse sand : 4 graded stone aggregate 20 mm nominal size) and top layer 12 mm thick cement hardener consisting of mix 1:2 (1 cement hardener mix : 2 graded stone aggregate 6 mm nominal size) by volume, hardening compound mixed @ 2 litre per 50 kg of cement or as per manufacturer's specifications. This includes cost of cement slurry, but excluding the cost of nosing of steps etc. complete. ",3.9375172834757799E-3,"Sqm",13,393.53,5115.8899999999994,0,0]
[23,"11.38/196","Providing and laying Ceramic glazed floor tiles of size 300x300 mm (thickness to be specified by the manufacturer), of 1st quality conforming to IS : 15622, of approved make, in all colours, shades, except White, Ivory, Grey, Fume Red Brown, laid on 20 mm thick bed of cement mortar 1:4 (1 Cement : 4 Coarse sand), jointing with grey cement slurry @ 3.3kg/sqm including pointing the joints with white cement and matching pigments etc., complete",1.184301515868455E-2,"Sqm",25,615.49,15387.25,0,0]
[24,"12.41.1","Providing & fixing 75 mm dia PVC pipe ",3.6555200244470115E-3,"Mtr",35,135.69999999999999,4749.5,0,0]
[25,"12.41.2","Providing & fixing 110 mm dia PVC pipe ",8.1553616547090299E-3,"Mtr",50,211.92,10596,0,0]
[26,"13.1.2/227","12 mm cement plaster of mix :  1:6 (1 cement: 6 fine sand) ",7.8217122325387415E-3,"Sqm",75,135.5,10162.5,0,0]
[27,"13.2.2/227","15 mm cement plaster on the rough side of single or half brick wall of mix :  1:6 (1 cement: 6 fine sand) ",1.3764404818444423E-2,"Sqm",115,155.51,17883.649999999998,0,0]
[28,"13.3.2/227","20 mm cement plaster of mix : 1:6 (1 cement: 6 fine sand)",1.4000191440086565E-3,"Sqm",10,181.9,1819,0,0]
[29,"13.8.2/227","15 mm cement plaster on rough side of single or half brick wall finished with a floating coat of neat cement of mix :  1:4 (1 cement: 4 fine sand) ",2.81558550445985E-3,"Sqm",20,182.91,3658.2,0,0]
[30,"14.1.1/242"," Repairs to plaster of thickness 12 mm to 20 mm in patches of area 2.5 sq.meters  and  under,  including  cutting  the  patch  in  proper  shape,  raking  out joints and preparing and plastering the surface of the walls complete, including disposal of rubbish to the dumping ground, all complete as per direction of Engineer-in-Charge.With cement mortar 1:4 (1 cement : 4 fine sand)",1.929548100071304E-2,"Sqm",115,218,25070,0,0]
[31,"15.2.1/253","Demolishing cement concrete manually/ by mechanical means including disposal of material within 50 metres lead as per direction of Engineer - in - charge.  Nominal concrete 1:3:6 or richer mix (i/c equivalent design mix) ",7.6739367099166083E-3,"Cum",10,997.05,9970.5,0,0]
[32,"15.2.2/253","Demolishing cement concrete manually/ by mechanical means including disposal of material within 50 metres lead as per direction of Engineer - in - charge. Nominal concrete 1:4:8 or leaner mix (i/c equivalent design mix) ",7.1018838078910802E-3,"Cum",15,615.15,9227.25,0,0]
[33,"15.3/253","Demolishing R.C.C. work manually/ by mechanical means including stacking of steel bars and disposal of unserviceable material within 50 metres lead as per direction of Engineer - in- charge.",1.6792725502345722E-2,"Cum",15,1454.55,21818.25,0,0]
[34,"15.7.4/253","Demolishing brick work manually/ by mechanical means including stacking of serviceable material and disposal of unserviceable material within 50 metres lead as per direction of Engineer-in-charge.",7.7836138556127222E-3,"Cum",12,842.75,10113,0,0]
[35,"15.9.2/253","Demolishing stone rubble masonry manually/ by mechanical means including stacking of serviceable material and disposal of unserviceable material within 50 metres lead as per direction of Engineer-in-charge :  In cement mortar",6.192410129211681E-3,"Cum",8,1005.7,8045.6,0,0]
[36,"15.12.1/254","Dismantling doors, windows and clerestory windows (steel or wood) shutter including chowkhats, architrave, holdfasts etc. complete and stacking within 50 metres lead : Of area 3 sq. metres and below ",6.0745745432041348E-4,"Each",5,157.85,789.25,0,0]
[37,"15.18/254","Dismantling steel work in built up sections in angles, tees, flats and channels including all gusset plates, bolts, nuts, cutting rivets, welding etc. including dismembering and stacking within 50 metres lead.",4.6179850819416925E-2,"Kg ",25000,2.4,60000,0,0]
[38,"15.56/258","Dismantling old plaster or skirting raking out joints and cleaning the surface for plaster including disposal of rubbish to the dumping ground within 50 metres lead. ",1.7240477639248986E-3,"Sqm",100,22.4,2240,0,0]
[39,"19.1.5/354","Providing, laying and jointing glazed stoneware pipes class SP-1 with stiff mixture of cement mortar in the proportion of 1:1 (1 cement : 1 fine sand) including testing of joints etc. complete : 300 mm diameter",1.3022717931075574E-2,"Mtr",25,676.8,16920,0,0]
[40,"19.3.5/354","Providing and laying cement concrete 1:5:10 (1 cement : 5 coarse sand : 10 graded stone aggregate 40 mm nominal size) up to haunches of S.W. pipes including bed concrete as per standard design : 300 mm diameter S.W. pipe",1.1125495726577861E-2,"Mtr",25,578.20000000000005,14455.000000000002,0,0]
[41,"0293/7","Stone Aggregate (Single size) : 40 mm nominal size ",1.0537087460720457E-2,"Cum",10,1369.05,13690.5,0,0]
[42,"0295/8","Stone Aggregate (Single size) : 20 mm nominal size ",1.3150266679038803E-2,"Cum",12,1423.81,17085.72,0,0]
[43,"0297/8","Stone agrgregate - 10 MM",1.3150266679038803E-2,"Cum",12,1423.81,17085.72,0,0]
[44,"0982/15","Coarse sand",1.0115619355575246E-2,"Cum",10,1314.29,13142.9,0,0]
[45,"983/15","Fine Sand",3.843918422506626E-3,"Cum",6,832.38,4994.28,0,0]
[46,"2602/27","FPS Bricks class designation 7.5",1.1380031367652683E-2,"1000 Nos ",3,4928.57,14785.71,0,0]
[47,"7850/41","Supply of white marble slab plain 18mm thk ",3.7090424715467154E-3,"sqm ",4,1204.76,4819.04,0,0]
[48,"DSR 2016","Item covered in DSR 2016 but not covered above",1.5393283606472309E-2,"DSR",20000,1,{"$f":"F55*G55","v":20000},0,0]
["Total ",null,null,{"$f":"SUM(D8:D55)","v":1.0000000248474195},"(A)",null,"Rs.",{"$f":"SUM(H8:H55)","v":1299267.9799999997}]
["In words ",null,null,null,{"$f":"rup(J56)","v":0}]
[]
[null,null,"Note -GST extra as applicable"]
[null,null,"1. Bidder has to quote in above unlocked cell (J-56) only. Item rate shall be calculated automatically. Calculated item rates upto four  decimal points may be adjusted w.r.t. gross total amount and it shall be the itemwise final rate for  execution of contract and all other purposes."]
[null,null,"2. Quoted gross total amount should be considered only if quoted in this excel sheet and print out of this should only be considered for evaluation.  If Price is quoted in any other format other than the Excel Sheet enclosed to the NIT , the offer of the bidder  will be rejected"]
[]
[]
[null,null,null,null,"(Signature and Seal of  Contractor  )"]